[Event "IND-ch Women 2019"]
[Site "Karaikkudi"]
[Date "2019.07.25"]
[Round "9.20"]
[White "Dhyana Patel"]
[Black "Chinnam Vyshnavi"]
[Result "*"]
[ECO "C08"]
[WhiteElo "1900"]
[BlackElo "1664"]
[Annotator "NA"]
[PlyCount "31"]
[EventDate "2019.07.19"]
[EventType "swiss"]
[EventCountry "IND"]
[SourceTitle "playchess.com"]
[Source "ChessBase"]
[SourceQuality "1"]
[TimeControl "40/5400+30:1800+30"]

1. e4 {[%emt 0:00:00]} e6 {[%emt 0:00:00]} 2. d4 {[%emt 0:00:00]} d5 {[%emt 0:00:10]} 3. Nd2 {[%emt 1:31:30]} c5 {[%emt 1:31:20]} 4. exd5 {[%emt 0:00:07]} exd5 {[%emt 0:00:56]} 5. Bb5+ {[%emt 0:00:08]} Bd7 {[%emt 0:00:11]} 6. Qe2+ {[%emt 0:00:42]} Qe7 {[%emt 0:01:09]} 7. Bxd7+ {[%emt 0:00:28]} Nxd7 {[%emt 0:00:12]} 8. dxc5 {[%emt 0:00:05]} Qxe2+ {[%emt 0:04:08]} 9. Nxe2 {[%emt 0:01:27]} Bxc5 {[%emt 0:00:24]} 10. Nb3 {[%emt 0:01:06]} Bb6 {[%emt 0:00:38]} 11. O-O {[%emt 0:01:19]} Ngf6 {[%emt 0:00:29]} 12. Bf4 {[%emt 0:01:52]} Ne4 {[%emt 0:06:09]} 13. Rad1 {[%emt 0:02:13]} Ndf6 {[%emt 0:00:40]} 14. Ned4 {[%emt 0:01:18]} O-O $14 {[%emt 0:01:02]} 15. f3 {[%emt 0:02:01]} Nc5 {[%emt 0:00:53]} 16. Be3 {[%emt 0:01:37]} *

[Event "IND-ch Women 2019"]
[Site "Karaikkudi"]
[Date "2019.07.25"]
[Round "9.20"]
[White "Dhyana Patel"]
[Black "Chinnam Vyshnavi"]
[Result "1/2-1/2"]
[ECO "C08"]
[WhiteElo "1900"]
[BlackElo "1664"]
[Annotator "NA"]
[PlyCount "67"]
[EventDate "2019.07.19"]
[EventType "swiss"]
[EventCountry "IND"]
[SourceTitle "playchess.com"]
[Source "ChessBase"]
[SourceQuality "1"]
[TimeControl "40/5400+30:1800+30"]

1. e4 {[%emt 0:00:00]} e6 {[%emt 0:00:00]} 2. d4 {[%emt 0:00:00]} d5 {[%emt 0:00:10]} 3. Nd2 {[%emt 0:00:07]} c5 {[%emt 0:00:18]} 4. exd5 {[%emt 0:00:07]} exd5 {[%emt 0:00:56]} 5. Bb5+ {[%emt 0:00:08]} Bd7 {[%emt 0:00:11]} 6. Qe2+ {[%emt 0:00:42]} Qe7 {[%emt 0:01:09]} 7. Bxd7+ {[%emt 0:00:28]} Nxd7 {[%emt 0:00:12]} 8. dxc5 {[%emt 0:00:05]} Qxe2+ {[%emt 0:04:08]} 9. Nxe2 {[%emt 0:01:27]} Bxc5 {[%emt 0:00:24]} 10. Nb3 {[%emt 0:01:06]} Bb6 {[%emt 0:00:38]} 11. O-O {[%emt 0:01:19]} Ngf6 {[%emt 0:00:29]} 12. Bf4 {[%emt 0:01:52]} Ne4 {[%emt 0:06:09]} 13. Rad1 {[%emt 0:02:13]} Ndf6 {[%emt 0:00:40]} 14. Ned4 {[%emt 0:01:18]} O-O $14 {[%emt 0:01:02]} 15. f3 {[%emt 0:02:01]} Nc5 {[%emt 0:00:53]} 16. Nxc5 {[%emt 0:00:50]} Bxc5 {[%emt 0:00:30]} 17. Be3 {[%emt 0:00:30]} Rfe8 {[%emt 0:00:30]} 18. Bf2 {[%emt 0:00:30]} a6 {[%emt 0:00:30]} 19. Rfe1 {[%emt 0:00:30]} g6 {[%emt 0:00:30]} 20. c3 {[%emt 0:00:30]} Rad8 {[%emt 0:00:30]} 21. Kf1 {[%emt 0:00:30]} Bd6 {[%emt 0:00:30]} 22. g3 {[%emt 0:00:30]} Rxe1+ {[%emt 0:00:30]} 23. Rxe1 {[%emt 0:00:30]} Re8 {[%emt 0:00:30]} 24. Rxe8+ {[%emt 0:00:30]} Nxe8 {[%emt 0:00:30]} 25. Nc2 {[%emt 0:00:30]} Kf8 {[%emt 0:00:30]} 26. Ke2 {[%emt 0:00:30]} Ke7 {[%emt 0:00:30]} 27. Kd3 {[%emt 0:00:30]} Ke6 {[%emt 0:00:30]} 28. Nd4+ {[%emt 0:00:30]} Ke7 {[%emt 0:00:30]} 29. Nb3 {[%emt 0:00:30]} Kd7 {[%emt 0:00:30]} 30. Be3 {[%emt 0:00:30]} Ng7 {[%emt 0:00:30]} 31. Bf2 {[%emt 0:14:24]} Ne8 {[%emt 0:47:25]} 32. Be3 {[%emt 0:05:55]} Ng7 {[%emt 0:02:56]} 33. Nd4 {[%emt 0:00:28]} Ne6 {[%emt 0:01:02]} 34. Nb3 {[%emt 0:04:32]} 1/2-1/2

[Event "IND-ch Women 2019"]
[Site "Karaikkudi"]
[Date "2019.07.25"]
[Round "9.21"]
[White "Toshali, V."]
[Black "Mudaliar Nandini"]
[Result "1-0"]
[ECO "D02"]
[WhiteElo "1920"]
[BlackElo "1609"]
[Annotator "NA"]
[PlyCount "99"]
[EventDate "2019.07.19"]
[EventType "swiss"]
[EventCountry "IND"]
[SourceTitle "playchess.com"]
[Source "ChessBase"]
[SourceQuality "1"]
[TimeControl "40/5400+30:1800+30"]

1. d4 {[%emt 0:00:00]} d5 {[%emt 0:01:00]} 2. Nf3 {[%emt 0:00:00]} Nf6 {[%emt 0:00:12]} 3. Bf4 {[%emt 0:00:00]} e6 {[%emt 0:02:12]} 4. e3 {[%emt 0:00:00]} c6 {[%emt 0:02:12]} 5. Nbd2 {[%emt 0:00:42]} Nbd7 {[%emt 0:02:04]} 6. Bd3 {[%emt 0:02:04]} Be7 {[%emt 0:02:01]} 7. Ne5 {[%emt 0:00:45]} Qb6 {[%emt 0:04:58]} 8. Rb1 {[%emt 0:01:03]} c5 {[%emt 0:01:59]} 9. c3 {[%emt 0:00:16]} Nxe5 {[%emt 0:06:18]} 10. dxe5 {[%emt 0:03:26]} Nd7 {[%emt 0:00:41]} 11. O-O {[%emt 0:03:13]} Nf8 {[%emt 0:06:31]} 12. e4 {[%emt 0:06:07]} Ng6 {[%emt 0:01:18]} 13. Bg3 {[%emt 0:00:48]} Bd7 {[%emt 0:00:59]} 14. Re1 {[%emt 0:05:32]} Bc6 {[%emt 0:11:40]} 15. exd5 {[%emt 0:11:00]} Bxd5 {[%emt 0:00:22]} 16. Nc4 {[%emt 0:00:15]} Bxc4 {[%emt 0:00:18]} 17. Bxc4 {[%emt 0:00:02]} Qc6 {[%emt 0:02:21]} 18. Bd3 {[%emt 0:07:39]} Bh4 $16 {[%emt 0:16:26]} 19. Be4 {[%emt 0:07:07]} Qd7 {[%emt 0:04:12]} 20. Qxd7+ {[%emt 0:03:14]} Kxd7 {[%emt 0:00:09]} 21. Bxh4 {[%emt 0:00:24]} Nxh4 {[%emt 0:00:11]} 22. Bxb7 {[%emt 0:00:13]} Rab8 {[%emt 0:00:08]} 23. Ba6 {[%emt 0:01:53]} Rb6 {[%emt 0:01:11]} 24. Bc4 {[%emt 0:00:31]} Kc7 {[%emt 0:02:16]} 25. Kf1 {[%emt 0:13:03]} Ng6 {[%emt 0:00:16]} 26. Re4 {[%emt 0:04:58]} Rd8 {[%emt 0:01:20]} 27. Bb3 {[%emt 0:00:31]} Rbb8 {[%emt 0:02:26]} 28. Ke2 {[%emt 0:14:53]} Rd7 {[%emt 0:03:50]} 29. Rd1 {[%emt 0:03:16]} Rbd8 {[%emt 0:04:45]} 30. Rxd7+ {[%emt 0:01:13]} Rxd7 {[%emt 0:00:09]} 31. a4 {[%emt 0:00:45]} Kc6 {[%emt 0:01:07]} 32. Bc4 {[%emt 0:01:25]} Rb7 {[%emt 0:01:00]} 33. b3 {[%emt 0:00:36]} a5 {[%emt 0:00:33]} 34. Bb5+ {[%emt 0:03:43]} Kd5 {[%emt 0:01:33]} 35. Re3 {[%emt 0:00:22]} Nxe5 {[%emt 0:00:37]} 36. f4 {[%emt 0:00:12]} Ng6 {[%emt 0:00:59]} 37. Rd3+ {[%emt 0:00:22]} Ke4 {[%emt 0:00:32]} 38. Bc6+ {[%emt 0:00:07]} Kf5 {[%emt 0:00:28]} 39. Bxb7 {[%emt 0:00:29]} Nxf4+ {[%emt 0:00:10]} 40. Ke3 {[%emt 0:00:00]} Nxd3 {[%emt 0:00:00]} 41. Kxd3 {[%emt 0:03:11]} Ke5 {[%emt 0:00:27]} 42. Kc4 {[%emt 0:00:13]} Kd6 {[%emt 0:00:07]} 43. Kb5 {[%emt 0:00:11]} f5 {[%emt 0:00:11]} 44. Kxa5 {[%emt 0:00:29]} e5 {[%emt 0:00:10]} 45. Kb5 {[%emt 0:00:06]} e4 {[%emt 0:00:06]} 46. Kc4 {[%emt 0:00:08]} g5 {[%emt 0:00:09]} 47. g4 {[%emt 0:01:45]} fxg4 {[%emt 0:00:45]} 48. Bxe4 {[%emt 0:00:12]} h5 {[%emt 0:00:14]} 49. a5 {[%emt 0:00:08]} Kc7 {[%emt 0:00:17]} 50. Kxc5 {[%emt 0:00:11]} 1-0

[Event "IND-ch Women 2019"]
[Site "Karaikkudi"]
[Date "2019.07.26"]
[Round "10.1"]
[White "Priyanka, Kumari"]
[Black "Kulkarni Bhakti"]
[Result "0-1"]
[ECO "C70"]
[WhiteElo "1991"]
[BlackElo "2388"]
[Annotator "RC"]
[PlyCount "138"]
[EventDate "2019.07.19"]
[EventType "swiss"]
[EventCountry "IND"]
[SourceTitle "playchess.com"]
[Source "ChessBase"]
[SourceQuality "1"]
[TimeControl "40/5400+30:1800+30"]

1. e4 {[%emt 0:00:00]} e5 {[%emt 0:00:53]} 2. Nf3 {[%emt 0:00:18]} Nc6 {[%emt 0:00:16]} 3. Bb5 {[%emt 0:00:32]} g6 {[%emt 0:00:09]} 4. c3 {[%emt 0:02:56]} a6 {[%emt 0:00:17]} 5. Ba4 {[%emt 0:02:26]} Bg7 {[%emt 0:00:12]} 6. d4 {[%emt 0:03:06]} exd4 {[%emt 0:04:49]} 7. cxd4 {[%emt 0:00:44]} b5 {[%emt 0:00:17]} 8. Bb3 {[%emt 0:03:03]} d6 {[%emt 0:00:24]} 9. h3 {[%emt 0:08:12]} Nge7 {[%emt 0:09:17]} 10. Nc3 {[%emt 0:06:03]} Na5 {[%emt 0:02:08]} 11. Bc2 {[%emt 0:04:51]} O-O {[%emt 0:01:45]} 12. O-O {[%emt 0:02:51]} h6 {[%emt 0:08:09]} 13. d5 {[%emt 0:10:16]} Bb7 {[%emt 0:07:52]} 14. Be3 {[%emt 0:15:06]} Nc4 {[%emt 0:03:35]} 15. Qc1 {[%emt 0:01:44]} Nxe3 {[%emt 0:02:45]} 16. Qxe3 {[%emt 0:00:34]} b4 {[%emt 0:07:33]} 17. Ne2 {[%emt 0:05:05]} c6 {[%emt 0:00:57]} 18. dxc6 {[%emt 0:02:58]} Nxc6 {[%emt 0:00:45]} 19. Rad1 {[%emt 0:03:17]} Rc8 {[%emt 0:09:17]} 20. Bb1 {[%emt 0:05:12]} Re8 {[%emt 0:03:37]} 21. Qd2 {[%emt 0:02:47]} a5 {[%emt 0:10:06]} 22. Nf4 {[%emt 0:05:33]} Qf6 {[%emt 0:06:29]} 23. b3 {[%emt 0:01:32]} Ne5 {[%emt 0:01:42]} 24. Nxe5 {[%emt 0:05:01]} Rxe5 {[%emt 0:00:23]} 25. Rfe1 {[%emt 0:01:38]} Rce8 {[%emt 0:01:45]} 26. Nd5 {[%emt 0:03:19]} Bxd5 {[%emt 0:00:28]} 27. exd5 {[%emt 0:00:06]} Qg5 {[%emt 0:01:09]} 28. Rxe5 {[%emt 0:00:44]} Qxe5 {[%emt 0:00:02]} 29. Qd3 {[%emt 0:02:26]} Qh5 {[%emt 0:01:08]} 30. g4 {[%emt 0:01:26]} Qg5 {[%emt 0:02:32]} 31. Qf3 {[%emt 0:00:48]} h5 {[%emt 0:01:05]} 32. Kf1 {[%emt 0:00:19]} h4 {[%emt 0:00:32]} 33. Bd3 {[%emt 0:00:32]} Bc3 {[%emt 0:00:25]} 34. Bc4 {[%emt 0:00:42]} Bb2 {[%emt 0:04:13]} 35. Kg2 {[%emt 0:00:48]} Qe5 {[%emt 0:00:36]} 36. Kf1 {[%emt 0:00:24]} Kf8 {[%emt 0:00:48]} 37. Kg2 {[%emt 0:00:09]} Bd4 {[%emt 0:01:22]} 38. Bd3 {[%emt 0:00:25]} Kg7 {[%emt 0:00:36]} 39. Bc4 {[%emt 0:00:11]} Bc5 {[%emt 0:00:48]} 40. Bb5 {[%emt 0:00:00]} Re7 {[%emt 0:00:00]} 41. Qd3 {[%emt 0:06:10]} g5 {[%emt 0:12:17]} 42. Rd2 {[%emt 0:05:26]} Qe1 {[%emt 0:01:54]} 43. Re2 {[%emt 0:00:57]} Rxe2 {[%emt 0:00:41]} 44. Qxe2 {[%emt 0:00:04]} Qxe2 {[%emt 0:00:24]} 45. Bxe2 {[%emt 0:00:05]} Kf6 {[%emt 0:00:06]} 46. Kf3 {[%emt 0:08:48]} Ke5 {[%emt 0:00:05]} 47. Bc4 {[%emt 0:00:23]} Kd4 {[%emt 0:00:54]} 48. Ke2 {[%emt 0:00:25]} Kc3 {[%emt 0:02:59]} 49. Bb5 {[%emt 0:03:07]} Kb2 {[%emt 0:02:05]} 50. Kd2 {[%emt 0:10:20]} Bxf2 {[%emt 0:00:12]} 51. Be2 {[%emt 0:00:50]} Bg3 {[%emt 0:00:54]} 52. Kd3 {[%emt 0:00:47]} Be5 {[%emt 0:04:38]} 53. Kd2 {[%emt 0:00:13]} Bf4+ {[%emt 0:00:38]} 54. Kd3 {[%emt 0:00:08]} Kxa2 {[%emt 0:01:00]} 55. Kc2 {[%emt 0:00:08]} a4 {[%emt 0:00:16]} 56. Bc4 {[%emt 0:00:18]} axb3+ {[%emt 0:00:11]} 57. Bxb3+ {[%emt 0:00:05]} Ka3 {[%emt 0:00:08]} 58. Bc4 {[%emt 0:00:10]} Be5 {[%emt 0:00:34]} 59. Kb1 {[%emt 0:02:13]} b3 {[%emt 0:00:12]} 60. Be2 {[%emt 0:00:44]} Kb4 {[%emt 0:00:04]} 61. Bf3 {[%emt 0:00:14]} Kc3 {[%emt 0:00:14]} 62. Bg2 {[%emt 0:00:14]} Kd3 {[%emt 0:00:10]} 63. Bf1+ {[%emt 0:00:18]} Ke3 {[%emt 0:00:04]} 64. Bc4 {[%emt 0:00:41]} b2 {[%emt 0:00:17]} 65. Kc2 {[%emt 0:00:39]} Kf2 {[%emt 0:00:04]} 66. Bd3 {[%emt 0:00:13]} Kg2 {[%emt 0:00:06]} 67. Kd2 {[%emt 0:00:15]} Kxh3 {[%emt 0:00:08]} 68. Bf5 {[%emt 0:00:03]} Kg2 {[%emt 0:00:23]} 69. Be4+ {[%emt 0:00:06]} Kg1 {[%emt 0:00:09]} 0-1

[Event "IND-ch Women 2019"]
[Site "Karaikkudi"]
[Date "2019.07.26"]
[Round "10.13"]
[White "Thipsay, Bagyashree Sathe"]
[Black "Bakshi, Rutuja"]
[Result "1/2-1/2"]
[ECO "C02"]
[WhiteElo "2093"]
[BlackElo "1958"]
[Annotator "NA RC"]
[PlyCount "117"]
[EventDate "2019.07.19"]
[EventType "swiss"]
[EventCountry "IND"]
[SourceTitle "playchess.com"]
[Source "ChessBase"]
[SourceQuality "1"]
[TimeControl "40/5400+30:1800+30"]

1. e4 {[%emt 0:00:00]} e6 {[%emt 0:00:00]} 2. d4 {[%emt 0:00:00]} d5 {[%emt 0:00:00]} 3. e5 {[%emt 0:00:00]} c5 {[%emt 0:00:00]} 4. c3 {[%emt 0:00:00]} Qb6 {[%emt 0:00:00]} 5. Nf3 {[%emt 0:00:01]} Bd7 {[%emt 0:00:00]} 6. Bd3 {[%emt 0:00:26]} Bb5 {[%emt 0:00:45]} 7. dxc5 {[%emt 0:00:26]} Bxc5 {[%emt 0:02:53]} 8. b4 {[%emt 0:00:25]} Bxd3 {[%emt 0:08:22]} 9. Qxd3 {[%emt 0:01:53]} Bf8 {[%emt 0:02:46]} 10. O-O {[%emt 0:00:43]} Ne7 {[%emt 0:01:26]} 11. Na3 {[%emt 0:01:21]} Nbc6 $11 {[%emt 0:09:32]} 12. Nb5 {[%emt 0:09:12]} Nf5 {[%emt 0:04:54]} 13. Bf4 {[%emt 0:35:31]} a6 {[%emt 0:10:02]} 14. Nd6+ {[%emt 0:00:32]} Nxd6 {[%emt 0:04:44]} 15. exd6 {[%emt 0:00:03]} Qd8 {[%emt 0:02:05]} 16. Rfe1 {[%emt 0:04:47]} Bxd6 {[%emt 0:05:52]} 17. Bxd6 {[%emt 0:09:36]} Qxd6 {[%emt 0:00:02]} 18. Ng5 {[%emt 0:04:14]} h6 {[%emt 0:10:45]} 19. Ne4 {[%emt 0:00:09]} Qc7 {[%emt 0:02:01]} 20. Ng3 {[%emt 0:01:24]} O-O {[%emt 0:05:17]} 21. Nh5 {[%emt 0:00:30]} g6 {[%emt 0:08:18]} 22. Ng3 {[%emt 0:07:14]} Qf4 {[%emt 0:05:09]} 23. Re3 {[%emt 0:02:38]} Ne5 {[%emt 0:02:22]} 24. Qe2 {[%emt 0:02:52]} Nc4 {[%emt 0:01:16]} 25. Rd3 {[%emt 0:02:29]} b5 {[%emt 0:06:52]} 26. Rd4 {[%emt 0:01:42]} Qe5 {[%emt 0:01:08]} 27. Qf1 {[%emt 0:03:17]} a5 {[%emt 0:00:25]} 28. a3 {[%emt 0:03:35]} axb4 {[%emt 0:00:56]} 29. axb4 {[%emt 0:00:02]} Rxa1 {[%emt 0:01:59]} 30. Qxa1 {[%emt 0:00:02]} Kg7 {[%emt 0:01:59]} 31. h3 {[%emt 0:00:34]} Nd6 {[%emt 0:01:06]} 32. Rd3 {[%emt 0:01:33]} Nc4 {[%emt 0:01:15]} 33. Kf1 {[%emt 0:02:03]} Qc7 {[%emt 0:01:14]} 34. Ne2 {[%emt 0:00:25]} Qb8 {[%emt 0:00:52]} 35. g3 {[%emt 0:00:59]} Qb7 {[%emt 0:00:16]} 36. Nd4 {[%emt 0:00:37]} Ra8 {[%emt 0:00:38]} 37. Qc1 {[%emt 0:00:20]} Ra2 {[%emt 0:00:34]} 38. Kg1 {[%emt 0:00:26]} Qa8 {[%emt 0:00:28]} 39. Rd1 {[%emt 0:00:23]} Qa4 {[%emt 0:00:20]} 40. Qb1 {[%emt 0:00:00]} e5 {[%emt 0:00:00]} 41. Nc6 {[%emt 0:09:58]} Rb2 {[%emt 0:03:04]} 42. Qd3 {[%emt 0:00:28]} d4 {[%emt 0:07:33]} 43. Re1 {[%emt 0:04:26]} Qa2 {[%emt 0:11:09]} 44. cxd4 {[%emt 0:02:37]} Rxf2 {[%emt 0:02:26]} 45. Qe4 {[%emt 0:00:27]} Rf5 {[%emt 0:04:26]} 46. Qg2 {[%emt 0:04:35]} Qxg2+ {[%emt 0:02:56]} 47. Kxg2 {[%emt 0:00:01]} exd4 {[%emt 0:00:15]} 48. Nxd4 {[%emt 0:00:02]} Rd5 {[%emt 0:00:08]} 49. Nb3 {[%emt 0:02:35]} Rd3 {[%emt 0:00:28]} 50. Nc5 {[%emt 0:00:23]} Rd2+ {[%emt 0:00:08]} 51. Kf3 {[%emt 0:00:01]} Rb2 {[%emt 0:00:22]} 52. Nd3 {[%emt 0:00:06]} Rb3 {[%emt 0:00:18]} 53. Ke4 {[%emt 0:00:20]} Nd6+ {[%emt 0:00:42]} 54. Ke3 {[%emt 0:00:51]} Kf6 {[%emt 0:02:33]} 55. g4 {[%emt 0:00:13]} Kg5 {[%emt 0:01:03]} 56. Kd4 {[%emt 0:00:13]} h5 {[%emt 0:00:26]} 57. Re5+ {[%emt 0:00:31]} Kf6 {[%emt 0:00:37]} 58. g5+ {[%emt 0:01:15]} Kg7 {[%emt 0:00:06]} 59. Rd5 {[%emt 0:00:04]} 1/2-1/2

[Event "IND-ch Women 2019"]
[Site "Karaikkudi"]
[Date "2019.07.26"]
[Round "10.14"]
[White "Meghna, C H"]
[Black "Harshita Guddanti"]
[Result "0-1"]
[ECO "C54"]
[WhiteElo "1903"]
[BlackElo "2078"]
[Annotator "NA RC"]
[PlyCount "132"]
[EventDate "2019.07.19"]
[EventType "swiss"]
[EventCountry "IND"]
[SourceTitle "playchess.com"]
[Source "ChessBase"]
[SourceQuality "1"]
[TimeControl "40/5400+30:1800+30"]

1. e4 {[%emt 0:00:00]} e5 {[%emt 0:00:10]} 2. Nf3 {[%emt 0:00:00]} Nc6 {[%emt 0:00:19]} 3. Bc4 {[%emt 0:00:00]} Nf6 {[%emt 0:01:06]} 4. d3 {[%emt 0:00:04]} Bc5 {[%emt 0:00:49]} 5. c3 {[%emt 0:00:22]} a6 {[%emt 0:00:53]} 6. Bb3 {[%emt 0:01:07]} Ba7 {[%emt 0:01:22]} 7. h3 {[%emt 0:00:41]} d6 {[%emt 0:01:43]} 8. Nbd2 {[%emt 0:00:43]} h6 {[%emt 0:07:13]} 9. Nf1 {[%emt 0:03:22]} Ne7 {[%emt 0:01:44]} 10. Ng3 {[%emt 0:01:26]} c6 {[%emt 0:09:06]} 11. d4 {[%emt 0:07:16]} Qc7 {[%emt 0:02:33]} 12. Be3 {[%emt 0:07:00]} O-O {[%emt 0:08:16]} 13. O-O {[%emt 0:00:38]} Ng6 {[%emt 0:10:02]} 14. Qd2 {[%emt 0:12:58]} Kh7 {[%emt 0:10:06]} 15. Bc2 {[%emt 0:08:48]} Re8 {[%emt 0:09:25]} 16. Rfe1 {[%emt 0:03:50]} Bd7 $16 {[%emt 0:07:34]} 17. Nf5 {[%emt 0:07:44]} Ng8 {[%emt 0:09:32]} 18. Rad1 {[%emt 0:11:04]} Red8 {[%emt 0:04:41]} 19. g4 {[%emt 0:07:41]} f6 {[%emt 0:03:59]} 20. Ng3 {[%emt 0:10:49]} c5 {[%emt 0:03:02]} 21. d5 {[%emt 0:04:30]} c4 {[%emt 0:00:47]} 22. Kh2 {[%emt 0:02:11]} b5 {[%emt 0:01:03]} 23. Rg1 {[%emt 0:01:10]} Bxe3 {[%emt 0:01:42]} 24. fxe3 {[%emt 0:02:05]} a5 {[%emt 0:00:33]} 25. Nh5 {[%emt 0:07:01]} Be8 {[%emt 0:01:45]} 26. h4 {[%emt 0:00:00]} b4 {[%emt 0:01:20]} 27. Rg2 {[%emt 0:00:00]} bxc3 {[%emt 0:00:21]} 28. Qxc3 {[%emt 0:00:00]} a4 {[%emt 0:01:13]} 29. a3 {[%emt 0:00:00]} Rdc8 {[%emt 0:00:49]} 30. Ng3 {[%emt 0:00:08]} Qa5 {[%emt 0:00:32]} 31. Nf5 {[%emt 0:01:25]} Qxc3 {[%emt 0:00:53]} 32. bxc3 {[%emt 0:00:01]} Ra6 {[%emt 0:00:35]} 33. Rb1 {[%emt 0:00:11]} Nf8 {[%emt 0:00:34]} 34. Bd1 {[%emt 0:00:53]} Nd7 {[%emt 0:00:26]} 35. Rb4 {[%emt 0:01:17]} g6 {[%emt 0:00:23]} 36. Ng3 {[%emt 0:00:07]} Nc5 {[%emt 0:00:41]} 37. Rxc4 {[%emt 0:00:39]} Bd7 {[%emt 0:00:03]} 38. Ne1 {[%emt 0:00:39]} Ne7 {[%emt 0:01:03]} 39. Rb2 {[%emt 0:00:18]} Kg7 {[%emt 0:00:17]} 40. Bc2 {[%emt 0:00:00]} Kf7 {[%emt 0:00:00]} 41. Bd1 {[%emt 0:02:01]} Nd3 {[%emt 0:13:16]} 42. Rxc8 {[%emt 0:03:24]} Nxb2 {[%emt 0:00:06]} 43. Rc7 {[%emt 0:00:21]} Nxd1 {[%emt 0:01:43]} 44. Rxd7 {[%emt 0:00:02]} Nxe3 {[%emt 0:00:25]} 45. Nd3 {[%emt 0:06:42]} Ke8 {[%emt 0:04:35]} 46. Rb7 {[%emt 0:00:49]} Nxg4+ {[%emt 0:02:56]} 47. Kh3 {[%emt 0:00:59]} Ne3 {[%emt 0:02:22]} 48. h5 {[%emt 0:05:09]} g5 {[%emt 0:04:57]} 49. Rb8+ {[%emt 0:04:55]} Kf7 {[%emt 0:01:11]} 50. Nb4 {[%emt 0:06:11]} Ra7 {[%emt 0:00:12]} 51. Nc6 {[%emt 0:00:18]} Nxc6 {[%emt 0:01:57]} 52. dxc6 {[%emt 0:00:01]} Ke6 {[%emt 0:00:52]} 53. Rh8 {[%emt 0:03:43]} Rc7 {[%emt 0:01:09]} 54. Rxh6 {[%emt 0:01:48]} Rxc6 {[%emt 0:00:03]} 55. Rh7 {[%emt 0:00:28]} Rxc3 {[%emt 0:00:28]} 56. h6 {[%emt 0:00:09]} Nf1 {[%emt 0:01:41]} 57. Kg2 {[%emt 0:00:38]} Nxg3 {[%emt 0:01:17]} 58. Rg7 {[%emt 0:00:05]} Ne2 {[%emt 0:00:14]} 59. h7 {[%emt 0:02:25]} Nf4+ {[%emt 0:00:04]} 60. Kf2 {[%emt 0:00:04]} Rh3 {[%emt 0:00:04]} 61. Ra7 {[%emt 0:01:07]} f5 {[%emt 0:00:42]} 62. exf5+ {[%emt 0:00:29]} Kxf5 {[%emt 0:00:03]} 63. Rxa4 {[%emt 0:00:14]} Rxh7 {[%emt 0:00:07]} 64. Ra8 {[%emt 0:00:02]} Rh2+ {[%emt 0:00:50]} 65. Kf1 {[%emt 0:00:10]} Ra2 {[%emt 0:00:18]} 66. a4 {[%emt 0:00:13]} g4 {[%emt 0:00:12]} 0-1